bitfinex/quotes_SOLUSD_20250106
["timestamp","ask_amount","ask_price","bid_price","bid_amount"]
[1736146254313,9.2007928,215.29,215.22,9.2007928]
[1736146254909,9.2007928,215.25,215.18,9.2007928]
[1736146255111,9.2007928,215.25,215.17,9.2007928]
[1736146255441,9.2007928,215.25,215.18,9.2007928]
[1736146255597,9.2007928,215.27,215.2,9.2007928]
[1736146256076,9.2007928,215.28,215.21,9.2007928]
[1736146256498,1.587,215.3,215.23,9.2007928]
[1736146256689,1.587,215.3,215.24,9.2007928]
[1736146256888,1.587,215.3,215.25,9.2007928]
[1736146257109,1.587,215.3,215.26,9.2007928]
[1736146258816,1.587,215.3,215.25,9.2007928]
[1736146260322,9.2007928,215.32,215.25,9.2007928]
[1736146261211,15.6570928,215.33,215.26,9.2007928]
[1736146262929,15.6570928,215.33,215.25,9.2007928]
[1736146263115,9.2007928,215.31,215.24,9.2007928]
[1736146264123,9.2007928,215.32,215.25,9.2007928]
[1736146264704,9.2007928,215.31,215.24,9.2007928]
[1736146266924,9.2007928,215.31,215.23,9.2007928]
[1736146267101,9.2007928,215.3,215.23,9.2007928]
[1736146267618,9.2007928,215.29,215.22,9.2007928]
[1736146273539,20.0,215.3,215.22,9.2007928]
[1736146273717,9.2007928,215.27,215.16,1.5017]
[1736146273913,9.2007928,215.26,215.19,9.2007928]
[1736146274426,9.2007928,215.26,215.2,9.2007928]
[1736146275232,9.2007928,215.27,215.2,9.2007928]
[1736146276908,9.2007928,215.26,215.2,9.2007928]
[1736146278138,9.2007928,215.26,215.19,9.2007928]
[1736146281832,9.2007928,215.26,215.16,1.5017]
[1736146281833,9.2007928,215.25,215.16,1.5017]
[1736146282140,9.2007928,215.23,215.17,9.2007928]
[1736146282846,6.2881,215.26,215.12,51.19694813]
[1736146282847,9.2007928,215.22,215.12,51.19694813]
[1736146283139,9.2007928,215.2,215.1,11.622]
[1736146283317,9.2007928,215.19,215.13,9.2007928]
[1736146287552,9.2007928,215.19,215.12,9.2007928]
[1736146288223,9.2007928,215.2,215.13,9.2007928]
[1736146289363,9.2007928,215.21,215.14,9.2007928]
[1736146289943,10.8383928,215.22,215.15,9.2007928]
[1736146290147,10.8383928,215.22,215.16,9.2007928]
[1736146290148,1.6376,215.22,215.16,9.2007928]
[1736146290533,10.8383928,215.22,215.15,9.2007928]
[1736146292328,1.6376,215.22,215.16,9.2007928]
[1736146292971,1.6376,215.22,215.17,9.2007928]
[1736146293243,1.6376,215.22,215.16,9.2007928]
[1736146294756,1.6376,215.22,215.17,9.2007928]
[1736146297256,1.6376,215.22,215.16,9.2007928]
[1736146297454,1.6376,215.22,215.12,11.6214]
[1736146297632,1.6376,215.22,215.16,9.2007928]
[1736146298330,10.8383928,215.22,215.15,9.2007928]
[1736146298527,9.2007928,215.21,215.14,9.2007928]
[1736146298945,10.8383928,215.22,215.15,9.2007928]
[1736146301843,1.6376,215.22,215.15,9.2007928]
[1736146302169,10.8383928,215.22,215.15,9.2007928]
[1736146304471,1.6376,215.22,215.16,9.2007928]
[1736146305174,20.0,215.23,215.17,9.2007928]
[1736146306275,6.2881,215.26,215.18,9.2007928]
[1736146306445,6.2881,215.26,215.2,9.2007928]
[1736146307053,9.2007928,215.25,215.18,9.2007928]
[1736146309797,15.4888928,215.26,215.19,9.2007928]
[1736146311069,6.2881,215.26,215.19,9.2007928]
[1736146311446,6.2881,215.26,215.2,9.2007928]
[1736146313256,6.2881,215.26,215.15,0.69693717]
[1736146313458,6.2881,215.26,215.2,9.2007928]
[1736146315376,6.2881,215.26,215.21,9.2007928]
[1736146316567,20.0,215.25,215.21,9.2007928]
[1736146316880,15.91024907,215.28,215.24,9.2007928]
[1736146317878,15.91024907,215.28,215.23,9.2007928]
[1736146318681,15.91024907,215.28,215.22,9.2007928]
[1736146319881,25.11104187,215.28,215.21,9.2007928]
[1736146322069,15.91024907,215.28,215.22,9.2007928]
[1736146324700,15.91024907,215.28,215.24,9.2007928]
[1736146325000,15.91024907,215.28,215.25,9.2007928]
[1736146325210,15.91024907,215.28,215.27,9.2007928]
[1736146325675,15.91024907,215.28,215.25,9.2007928]
[1736146325876,15.91024907,215.28,215.26,9.2007928]
[1736146327589,15.91024907,215.28,215.27,9.2007928]
[1736146330575,6.3708,215.36,215.27,9.2007928]
[1736146330777,9.2007928,215.35,215.28,9.2007928]
[1736146332289,15.5715928,215.36,215.28,9.2007928]
[1736146332677,15.5715928,215.36,215.29,9.2007928]
[1736146334300,15.5715928,215.36,215.24,53.23666927]
[1736146334301,1.6533,215.38,215.3,9.2007928]
[1736146334498,6.2272,215.41,215.35,9.2007928]
[1736146334796,6.2272,215.41,215.31,0.69653929]
[1736146334797,15.4279928,215.41,215.34,9.2007928]
[1736146335093,9.2007928,215.4,215.33,9.2007928]
[1736146335300,9.2007928,215.39,215.32,9.2007928]
[1736146336092,29.2007928,215.38,215.31,9.2007928]
[1736146336677,29.2007928,215.38,215.3,9.2007928]
[1736146337066,9.2007928,215.34,215.22,13.1183]
[1736146337395,9.2007928,215.33,215.26,9.2007928]
[1736146338276,29.2007928,215.34,215.27,9.2007928]
[1736146341700,1.5249,215.36,215.28,9.2007928]
[1736146341997,9.2007928,215.35,215.28,9.2007928]
[1736146343270,1.5249,215.36,215.29,9.2007928]
[1736146343690,10.7256928,215.36,215.29,9.2007928]
[1736146343896,9.2007928,215.35,215.28,9.2007928]
[1736146345704,9.2007928,215.33,215.24,0.6966029]
[1736146345910,9.2007928,215.33,215.26,9.2007928]
[1736146346285,9.2007928,215.34,215.27,9.2007928]
[1736146348306,9.2007928,215.33,215.26,9.2007928]
[1736146349308,9.2007928,215.34,215.27,9.2007928]
[1736146349708,9.2007928,215.34,215.26,9.2007928]
[1736146351733,23.776884,215.33,215.26,9.2007928]
[1736146356113,23.776884,215.33,215.27,9.2007928]
[1736146358681,1.5249,215.36,215.27,9.2007928]
[1736146358918,10.7256928,215.36,215.29,9.2007928]
[1736146360212,9.2007928,215.33,215.25,0.69660539]
[1736146360423,23.776884,215.31,215.23,9.2007928]
[1736146361413,9.2007928,215.31,215.24,9.2007928]
[1736146362090,32.9776768,215.32,215.24,9.2007928]
[1736146363596,9.2007928,215.3,215.23,9.2007928]
[1736146366912,9.2007928,215.3,215.22,10.7033928]
[1736146368721,9.2007928,215.29,215.18,0.69678036]
[1736146368922,32.9776768,215.27,215.17,11.6184]
[1736146369226,32.9776768,215.27,215.2,9.2007928]
[1736146369512,32.9776768,215.27,215.19,9.2007928]
[1736146371125,32.9776768,215.27,215.2,9.2007928]
[1736146371908,23.776884,215.27,215.21,9.2007928]
[1736146372328,9.2007928,215.29,215.22,9.2007928]
[1736146372523,23.776884,215.32,215.23,9.2007928]
[1736146372729,9.2007928,215.3,215.23,9.2007928]
[1736146373033,20.0,215.31,215.24,9.2007928]
[1736146373232,29.2007928,215.31,215.24,9.2007928]
[1736146373427,23.776884,215.3,215.24,9.2007928]
[1736146373630,20.0,215.31,215.18,5.0]
[1736146373801,29.2007928,215.31,215.24,9.2007928]
[1736146374120,32.9776768,215.3,215.23,9.2007928]
[1736146374737,32.9776768,215.3,215.22,9.2007928]
[1736146376550,32.9776768,215.3,215.23,9.2007928]
[1736146377021,23.776884,215.3,215.23,9.2007928]
[1736146377227,32.9776768,215.3,215.22,9.2007928]
[1736146383537,23.776884,215.3,215.22,9.2007928]
[1736146383706,23.776884,215.3,215.26,9.2007928]
[1736146384475,23.776884,215.3,215.24,9.2007928]
[1736146385957,23.776884,215.28,215.18,0.69681793]
[1736146386283,23.776884,215.28,215.2,9.2007928]
[1736146386485,23.776884,215.26,215.19,9.2007928]
[1736146386642,23.776884,215.26,215.2,9.2007928]
[1736146386961,9.2007928,215.28,215.2,9.2007928]
[1736146387149,32.9776768,215.29,215.21,9.2007928]
[1736146388770,32.9776768,215.29,215.22,9.2007928]
[1736146390059,23.776884,215.29,215.22,9.2007928]
[1736146390649,32.9776768,215.29,215.22,9.2007928]
[1736146391645,23.776884,215.29,215.23,9.2007928]
[1736146393245,32.9776768,215.29,215.22,9.2007928]
[1736146398550,23.776884,215.29,215.22,9.2007928]
[1736146405576,6.465,215.34,215.26,9.2007928]
[1736146405733,6.465,215.34,215.3,9.2007928]
[1736146405944,23.776884,215.33,215.3,9.2007928]
[1736146406357,1.6387,215.36,215.3,9.2007928]
[1736146406874,23.776884,215.35,215.3,9.2007928]
[1736146407436,1.6387,215.36,215.3,9.2007928]
[1736146407740,10.8394928,215.36,215.3,9.2007928]
[1736146407939,23.776884,215.35,215.3,9.2007928]
[1736146408133,23.776884,215.35,215.29,9.2007928]
[1736146409148,23.776884,215.35,215.3,9.2007928]
[1736146409739,1.6387,215.36,215.3,9.2007928]
[1736146410753,1.6387,215.36,215.31,9.2007928]
[1736146410940,23.776884,215.37,215.31,9.2007928]
[1736146411135,12.13316591,215.39,215.33,9.2007928]
[1736146412261,23.776884,215.38,215.33,9.2007928]
[1736146413549,23.776884,215.38,215.32,9.2007928]
[1736146414833,32.9776768,215.38,215.32,9.2007928]
[1736146415034,32.9776768,215.38,215.31,9.2007928]
[1736146417872,23.776884,215.38,215.32,9.2007928]
[1736146418572,23.776884,215.38,215.33,9.2007928]
[1736146420543,23.776884,215.38,215.32,9.2007928]
[1736146421172,32.9776768,215.38,215.27,12.30958031]
[1736146421378,23.776884,215.36,215.27,11.613]
[1736146421678,9.2007928,215.36,215.29,9.2007928]
[1736146422044,9.2007928,215.36,215.28,9.2007928]
[1736146422578,9.2007928,215.36,215.29,9.2007928]
[1736146422777,23.776884,215.36,215.3,9.2007928]
[1736146424489,23.776884,215.38,215.3,9.2007928]
[1736146424672,23.776884,215.36,215.3,9.2007928]
[1736146429194,12.13316591,215.39,215.32,9.2007928]
[1736146429373,21.33395871,215.39,215.32,9.2007928]
[1736146429985,23.776884,215.38,215.32,9.2007928]
[1736146430299,21.33395871,215.39,215.32,9.2007928]
[1736146430603,21.33395871,215.39,215.33,9.2007928]
[1736146431589,9.2007928,215.36,215.28,52.8541194]
[1736146431798,9.2007928,215.36,215.29,9.2007928]
[1736146433273,23.776884,215.36,215.3,9.2007928]
[1736146433672,9.2007928,215.38,215.31,9.2007928]
[1736146434095,23.776884,215.37,215.31,9.2007928]
[1736146441807,23.776884,215.38,215.31,9.2007928]
[1736146443009,23.776884,215.38,215.32,9.2007928]
[1736146447514,23.776884,215.38,215.31,9.2007928]
[1736146465327,23.776884,215.38,215.33,9.2007928]
[1736146467100,12.13316591,215.39,215.33,9.2007928]
[1736146467500,12.13316591,215.39,215.34,9.2007928]
[1736146468417,12.13316591,215.39,215.35,9.2007928]
[1736146469414,12.13316591,215.39,215.36,9.2007928]
[1736146471019,12.13316591,215.39,215.35,9.2007928]
[1736146471528,12.13316591,215.39,215.34,9.2007928]
[1736146473159,12.13316591,215.39,215.33,9.2007928]
[1736146473513,23.776884,215.38,215.32,9.2007928]
[1736146474406,23.776884,215.38,215.31,1.5156]
[1736146474607,23.776884,215.38,215.32,9.2007928]
[1736146476627,32.9776768,215.38,215.32,9.2007928]
[1736146477532,23.776884,215.38,215.32,9.2007928]
[1736146482334,12.13316591,215.39,215.33,9.2007928]
[1736146485659,23.776884,215.39,215.33,9.2007928]
[1736146485813,23.776884,215.39,215.34,9.2007928]
[1736146487519,7.25474295,215.42,215.34,9.2007928]
[1736146487715,9.2007928,215.4,215.33,9.2007928]
[1736146490245,23.776884,215.4,215.34,9.2007928]
[1736146494673,23.776884,215.41,215.35,9.2007928]
[1736146497171,7.25474295,215.43,215.39,9.2007928]
[1736146497356,7.25474295,215.43,215.4,9.2007928]
[1736146497666,7.25474295,215.43,215.41,9.2007928]
[1736146498193,29.0189718,215.46,215.41,9.2007928]
[1736146498194,23.776884,215.45,215.41,9.2007928]
[1736146498759,16.45553575,215.46,215.39,9.2007928]
[1736146498958,9.2007928,215.46,215.39,9.2007928]
[1736146499674,9.2007928,215.45,215.39,9.2007928]
[1736146504866,9.2007928,215.45,215.37,1.5914]
[1736146505057,9.2007928,215.45,215.39,9.2007928]
[1736146508088,9.2007928,215.46,215.39,9.2007928]
[1736146513784,9.2007928,215.44,215.37,1.5914]
[1736146513951,20.0,215.45,215.37,10.7921928]
[1736146514159,9.2007928,215.43,215.37,10.7921928]
[1736146514987,9.2007928,215.43,215.37,1.5914]
[1736146515191,9.2007928,215.41,215.35,9.2007928]
[1736146516081,9.2007928,215.41,215.32,7.8209]
[1736146516288,9.2007928,215.39,215.32,7.8209]
[1736146516493,9.2007928,215.36,215.27,58.4206]
[1736146516785,9.2007928,215.33,215.27,17.1213928]
[1736146516993,9.2007928,215.32,215.27,7.9206]
[1736146517494,9.2007928,215.29,215.22,9.2007928]
[1736146517669,9.2007928,215.29,215.21,7.9206]
[1736146517871,9.2007928,215.29,215.22,9.2007928]
[1736146518064,9.2007928,215.28,215.21,7.9206]
[1736146518397,9.2007928,215.27,215.21,1.5593]
[1736146520766,23.776884,215.32,215.21,1.5593]
[1736146520767,9.2007928,215.26,215.21,1.5593]
[1736146522091,9.2007928,215.27,215.21,10.7600928]
[1736146522686,23.776884,215.32,215.22,9.2007928]
[1736146522888,20.0,215.29,215.24,9.2007928]
[1736146523200,20.0,215.29,215.23,9.2007928]
[1736146524174,23.776884,215.26,215.16,7.9805]
[1736146524369,32.9776768,215.26,215.19,9.2007928]
[1736146525183,32.9776768,215.26,215.2,9.2007928]
[1736146525385,9.2007928,215.23,215.16,1.5576]
[1736146525560,9.2007928,215.19,215.11,1.6169]
[1736146525759,9.2007928,215.18,215.11,1.6169]
[1736146525965,9.2007928,215.18,215.11,10.8176928]
[1736146526268,9.2007928,215.16,215.06,52.1169]
[1736146526470,9.2007928,215.16,215.09,9.2007928]
[1736146526696,9.2007928,215.15,215.08,9.2007928]
[1736146527067,9.2007928,215.14,215.07,9.2007928]
[1736146528188,9.2007928,215.13,215.06,10.8176928]
[1736146528573,9.2007928,215.13,215.06,1.6169]
[1736146528877,9.2007928,215.13,215.06,10.8176928]
[1736146530020,9.2007928,215.12,215.06,1.6169]
[1736146530191,9.2007928,215.13,215.06,10.8176928]
[1736146530515,9.2007928,215.14,215.07,9.2007928]
[1736146530886,9.2007928,215.13,215.06,10.8176928]
[1736146532109,20.0,215.15,215.08,9.2007928]
[1736146532414,29.2007928,215.15,215.08,9.2007928]
[1736146533023,29.2007928,215.15,215.09,9.2007928]
[1736146533717,1.5418,215.22,215.12,9.2007928]
[1736146533888,9.2007928,215.19,215.13,9.2007928]
[1736146534218,9.2007928,215.18,215.07,11.6241]
[1736146534396,9.2007928,215.18,215.11,9.2007928]
[1736146534715,29.2007928,215.17,215.11,9.2007928]
[1736146535586,29.2007928,215.17,215.1,9.2007928]
[1736146536312,29.2007928,215.17,215.09,9.2007928]
[1736146536313,9.2007928,215.16,215.09,9.2007928]
[1736146536812,29.2007928,215.17,215.11,9.2007928]
[1736146537788,38.3348712,215.27,215.14,9.2007928]
[1736146537989,9.2007928,215.2,215.14,9.2007928]
[1736146538316,9.2007928,215.16,215.06,1.6169]
[1736146538491,9.2007928,215.15,215.09,9.2007928]
[1736146538892,9.2007928,215.16,215.09,9.2007928]
[1736146539117,9.2007928,215.16,215.1,9.2007928]
[1736146539321,9.2007928,215.16,215.09,9.2007928]
[1736146540112,2.04,215.18,215.11,9.2007928]
[1736146540426,9.2007928,215.17,215.11,9.2007928]
[1736146541714,9.2007928,215.17,215.1,9.2007928]
[1736146543097,32.9776768,215.18,215.1,9.2007928]
[1736146545730,9.2007928,215.17,215.09,9.2007928]
[1736146546929,9.2007928,215.17,215.1,9.2007928]
[1736146547924,31.6152,215.24,215.1,9.2007928]
[1736146548111,9.2007928,215.2,215.13,9.2007928]
[1736146548315,9.2007928,215.18,215.06,63.7413]
[1736146548726,9.2007928,215.18,215.09,9.2007928]
[1736146552809,9.2007928,215.2,215.09,9.2007928]
[1736146553135,9.2007928,215.2,215.11,9.2007928]
[1736146553432,9.2007928,215.18,215.09,11.6229]
[1736146553635,9.2007928,215.18,215.1,9.2007928]
[1736146554331,23.776884,215.2,215.1,9.2007928]
[1736146554530,9.2007928,215.2,215.12,9.2007928]
[1736146555030,23.776884,215.19,215.12,9.2007928]
[1736146555236,9.2007928,215.18,215.1,9.2007928]
[1736146555429,2.04,215.21,215.1,9.2007928]
[1736146555770,9.2007928,215.19,215.12,9.2007928]
[1736146558219,9.2007928,215.2,215.13,9.2007928]
[1736146560542,9.2007928,215.19,215.12,9.2007928]
[1736146561721,9.2007928,215.2,215.13,9.2007928]
[1736146563435,9.2007928,215.23,215.13,10.8470928]
[1736146566125,9.2007928,215.25,215.17,9.2007928]
[1736146566938,9.2007928,215.24,215.17,9.2007928]
[1736146567475,20.0,215.25,215.13,64.46368653]
[1736146567476,9.2007928,215.23,215.15,9.2007928]
[1736146567976,9.2007928,215.23,215.16,9.2007928]
[1736146568870,9.2007928,215.24,215.16,9.2007928]
[1736146569255,9.2007928,215.23,215.15,9.2007928]
[1736146570188,9.2007928,215.22,215.15,9.2007928]
[1736146574384,9.2007928,215.23,215.15,9.2007928]
[1736146574553,9.2007928,215.23,215.16,9.2007928]
[1736146575860,20.0,215.25,215.16,9.2007928]
[1736146575861,29.2007928,215.25,215.16,9.2007928]
[1736146584799,9.2007928,215.23,215.16,9.2007928]
[1736146587604,9.2007928,215.24,215.16,9.2007928]
[1736146589809,9.2007928,215.24,215.17,9.2007928]
[1736146593506,9.2007928,215.24,215.15,9.2007928]
[1736146597686,20.0,215.27,215.19,9.2007928]
[1736146597886,29.2007928,215.27,215.19,9.2007928]
[1736146598277,9.2007928,215.26,215.19,9.2007928]
[1736146598917,20.0,215.27,215.19,9.2007928]
[1736146599088,29.2007928,215.27,215.2,9.2007928]
[1736146600406,29.2007928,215.27,215.15,12.31621686]
[1736146600407,9.2007928,215.26,215.19,9.2007928]
[1736146600915,9.2007928,215.25,215.18,9.2007928]
[1736146603285,9.2007928,215.25,215.17,9.2007928]
[1736146603487,9.2007928,215.23,215.15,59.7007928]
[1736146603986,9.2007928,215.23,215.16,9.2007928]
[1736146604386,23.776884,215.25,215.16,9.2007928]
[1736146604695,9.2007928,215.23,215.16,9.2007928]
[1736146608410,23.776884,215.25,215.14,8.1274]
[1736146608411,9.2007928,215.2,215.14,8.1274]
[1736146608617,9.2007928,215.19,215.14,8.1274]
[1736146609195,9.2007928,215.2,215.14,8.1274]
[1736146613115,9.2007928,215.21,215.14,17.3281928]
[1736146613586,31.2407928,215.22,215.15,9.2007928]
[1736146614517,9.2007928,215.21,215.14,17.3281928]
[1736146614693,9.2007928,215.21,215.14,8.1274]
[1736146616033,9.2007928,215.2,215.14,1.5955]
[1736146616317,9.2007928,215.19,215.14,1.5955]
[1736146623023,9.2007928,215.2,215.14,1.5955]
[1736146624921,9.2007928,215.21,215.14,10.7962928]
[1736146625225,31.2407928,215.22,215.15,9.2007928]
[1736146625526,9.2007928,215.21,215.14,10.7962928]
[1736146625899,9.2007928,215.2,215.14,1.5955]
[1736146628210,32.9776768,215.19,215.14,1.5955]
[1736146628417,9.2007928,215.18,215.11,9.2007928]
[1736146631607,9.2007928,215.16,215.09,15.6478928]
[1736146632314,9.2007928,215.15,215.08,1.5756]
[1736146632498,9.2007928,215.12,215.08,1.5756]
[1736146633304,9.2007928,215.11,215.05,9.2007928]
[1736146633500,9.2007928,215.11,215.04,15.7130928]
[1736146633730,9.2007928,215.11,215.04,6.5123]
[1736146634024,9.2007928,215.11,215.04,15.7130928]
[1736146635308,9.2007928,215.1,215.04,15.7130928]
[1736146636126,9.2007928,215.1,215.04,6.5123]
[1736146636332,9.2007928,215.1,215.04,15.7130928]
[1736146636536,9.2007928,215.1,215.04,6.5123]
[1736146636735,9.2007928,215.09,215.04,6.5123]
[1736146637034,9.2007928,215.08,215.03,1.5547]
[1736146637832,9.2007928,215.07,215.03,1.5547]
[1736146638647,9.2007928,215.06,215.03,1.5547]
[1736146638845,9.2007928,215.06,215.0,1000.0]
[1736146639009,20.0,215.07,215.0,1000.0]
[1736146639325,9.2007928,215.07,215.0,1009.2007928]
[1736146642151,9.2007928,215.06,215.0,1000.0]
[1736146643113,20.0,215.08,215.0,1009.2007928]
[1736146643319,9.2007928,215.08,215.01,9.2007928]
[1736146643519,9.2007928,215.09,215.02,9.2007928]
[1736146644838,9.2007928,215.08,215.01,9.2007928]
[1736146645533,9.2007928,215.08,215.0,1000.0]
[1736146645729,9.2007928,215.07,215.0,1009.2007928]
[1736146646126,9.2007928,215.06,215.0,1000.0]
[1736146646337,9.2007928,215.05,215.0,1000.0]
[1736146646545,9.2007928,215.06,215.0,1000.0]
[1736146646840,20.0,215.07,215.0,1000.0]
[1736146647019,9.2007928,215.05,215.0,1000.0]
[1736146647421,9.2007928,215.04,215.0,1000.0]
[1736146648223,20.0,215.07,215.0,1000.0]
[1736146648543,9.2007928,215.01,215.0,1000.0]
[1736146651446,23.776884,215.06,215.0,1000.0]
[1736146651447,20.0,215.02,215.0,1000.0]
[1736146651953,9.2007928,215.01,215.0,1000.0]
[1736146652953,9.2007928,215.02,215.0,1000.0]
[1736146653748,9.2007928,215.01,215.0,1000.0]
[1736146655870,9.2007928,215.02,215.0,1000.0]
[1736146657574,9.2007928,215.05,215.0,1000.0]
[1736146658237,9.2007928,215.04,215.0,1000.0]
[1736146658954,2.04,215.07,215.0,1000.0]
[1736146659165,9.2007928,215.04,215.0,1000.0]
[1736146659466,9.2007928,215.03,215.0,1000.0]
[1736146659625,9.2007928,215.04,215.0,1000.0]
[1736146660771,9.2007928,215.03,215.0,1000.0]
[1736146662370,9.2007928,215.02,215.0,1000.0]
[1736146662667,9.2007928,215.01,215.0,1000.0]
[1736146664870,9.2007928,215.03,215.0,1000.0]
[1736146665447,9.2007928,215.02,215.0,1000.0]
[1736146665658,9.2007928,215.03,215.0,1000.0]
[1736146666361,9.2007928,215.04,215.0,1000.0]
[1736146668863,9.2007928,215.05,215.0,1000.0]
[1736146669367,9.2007928,215.06,215.0,1001.5224]
[1736146670461,11.6202,215.15,215.0,1010.7231928]
[1736146670666,9.2007928,215.08,215.01,9.2007928]
[1736146670878,9.2007928,215.07,215.0,1010.7231928]
[1736146672988,9.2007928,215.06,215.0,1001.5224]
[1736146673370,9.2007928,215.05,215.0,1001.5224]
[1736146673550,9.2007928,215.04,215.0,1001.5224]
[1736146676250,9.2007928,215.05,215.0,1001.5224]
[1736146677557,9.2007928,215.04,215.0,1001.5224]
[1736146677857,9.2007928,215.05,215.0,1001.5224]
[1736146679883,9.2007928,215.04,215.0,1001.5224]
[1736146683659,9.2007928,215.03,215.0,1001.5224]
[1736146686369,9.2007928,215.03,215.0,1000.0]
[1736146689262,9.2007928,215.01,215.0,1000.0]
[1736146689656,9.2007928,215.02,215.0,1000.0]
[1736146692381,22.02,215.06,215.0,1000.0]
[1736146692588,9.2007928,215.03,215.0,1000.0]
[1736146694891,9.2007928,215.01,215.0,1000.0]
[1736146702491,20.0,215.03,215.0,1000.0]
[1736146702697,9.2007928,215.02,215.0,1000.0]
[1736146703404,20.0,215.03,215.0,1000.0]
[1736146703701,9.2007928,215.03,215.0,1000.0]
[1736146704617,9.2007928,215.01,215.0,1000.0]
[1736146705802,29.2007928,215.01,215.0,1000.0]
[1736146707899,32.9776768,215.01,215.0,1000.0]
[1736146708507,470.6206308,215.01,215.0,1000.0]
[1736146712898,472.6406308,215.01,215.0,1000.0]
[1736146714292,477.6406308,215.01,215.0,927.0420819]
[1736146714693,482.6406308,215.01,215.0,927.0420819]
[1736146716715,482.6406308,215.01,215.0,854.0841638]
[1736146719032,482.6406308,215.01,215.0,849.6341638]
[1736146719336,482.6406308,215.01,215.0,847.04416381]
[1736146719714,482.6406308,215.01,215.0,774.08624571]
[1736146720331,482.6406308,215.01,215.0,764.01624571]
[1736146721528,477.6406308,215.01,215.0,764.01624571]
[1736146721831,482.6406308,215.01,215.0,764.01624571]
[1736146722602,482.6406308,215.01,215.0,759.59613633]
[1736146722824,482.6406308,215.01,215.0,686.63821823]
[1736146725731,482.6406308,215.01,215.0,613.68030013]
[1736146728742,482.6406308,215.01,215.0,540.72238203]
[1736146731934,477.6406308,215.01,215.0,540.72238203]
[1736146732111,482.6406308,215.01,215.0,540.72238203]
[1736146734441,482.6406308,215.01,215.0,538.82983377]
[1736146735043,480.6206308,215.01,215.0,538.82983377]
[1736146735226,482.6406308,215.01,215.0,538.82983377]
[1736146736513,472.6406308,215.01,215.0,538.82983377]
[1736146736713,461.419838,215.01,215.0,538.82983377]
[1736146736939,448.8637468,215.01,215.0,538.82983377]
[1736146738242,477.6406308,215.01,215.0,538.82983377]
[1736146740547,472.6406308,215.01,215.0,538.82983377]
[1736146741845,470.6206308,215.01,215.0,538.82983377]
[1736146742015,472.6406308,215.01,215.0,538.82983377]
[1736146743239,461.419838,215.01,215.0,538.82983377]
[1736146743460,448.8637468,215.01,215.0,538.82983377]
[1736146744522,472.6406308,215.01,215.0,538.82983377]
[1736146746145,470.6206308,215.01,215.0,538.82983377]
[1736146746449,472.6406308,215.01,215.0,538.82983377]
[1736146748350,470.6206308,215.01,215.0,538.82983377]
[1736146748556,472.6406308,215.01,215.0,538.82983377]
[1736146750552,448.8637468,215.01,215.0,538.82983377]
[1736146756673,439.662954,215.01,215.0,538.82983377]
[1736146757141,437.642954,215.01,215.0,538.82983377]
[1736146758779,340.1364359,215.01,215.0,604.66102657]
[1736146760377,340.1364359,215.01,215.0,628.43791057]
[1736146764170,340.1364359,215.01,215.0,630.45791057]
[1736146770053,267.1785178,215.01,215.0,630.45791057]
[1736146773688,194.2205997,215.01,215.0,630.45791057]
[1736146787500,194.2205997,215.01,215.0,624.32751057]
[1736146790672,194.2205997,215.01,215.0,622.30751057]
[1736146790878,194.2205997,215.01,215.0,613.10671777]
[1736146791097,194.2205997,215.01,215.0,600.55062657]
[1736146794112,194.2205997,215.01,215.0,591.34983377]
[1736146794313,194.2205997,215.01,215.0,600.55062657]
[1736146795093,194.2205997,215.01,215.0,591.34983377]
[1736146795415,194.2205997,215.01,215.0,600.55062657]
[1736146797413,194.2205997,215.01,215.0,591.34983377]
[1736146797618,194.2205997,215.01,215.0,600.55062657]
[1736146804125,194.2205997,215.01,215.0,598.53062657]
[1736146804326,194.2205997,215.01,215.0,600.55062657]
[1736146804888,188.7917997,215.01,215.0,624.32751057]
[1736146805091,107.3961816,215.01,215.0,624.32751057]
[1736146805311,47.83910273,215.01,215.0,678.36319065]
[1736146805502,7.86130274,215.01,215.0,685.26194991]
[1736146805704,1.548,215.12,215.04,20.0]
[1736146805909,1.548,215.12,215.11,9.2007928]
[1736146807425,6.1081,215.18,215.11,9.2007928]
[1736146807426,7.6883,215.18,215.11,9.2007928]
[1736146807611,7.6883,215.18,215.16,9.2007928]
[1736146807922,7.6883,215.18,215.17,9.2007928]
[1736146808126,7.6883,215.18,215.16,9.2007928]
[1736146810320,7.6883,215.18,215.11,50.5]
[1736146810626,7.6883,215.18,215.12,9.2007928]
[1736146810925,16.8890928,215.18,215.11,9.2007928]
[1736146811331,7.6883,215.18,215.12,9.2007928]
[1736146812201,9.2007928,215.17,215.1,9.2007928]
[1736146812407,9.2007928,215.16,215.08,50.5]
[1736146812712,9.2007928,215.15,215.08,59.7007928]
[1736146813226,9.2007928,215.16,215.09,9.2007928]
[1736146813726,7.6883,215.18,215.1,9.2007928]